bitfinex-derivatives/quotes_SOLF0:USTF0_20240905
["timestamp","ask_amount","ask_price","bid_price","bid_amount"]
[1725512538510,3.7482,133.39,133.38,0.05373788]
[1725512538709,0.04984147,133.41,133.38,0.05373788]
[1725512539525,3.7484,133.4,133.38,0.05373788]
[1725512540207,3.7485,133.39,133.38,0.05373788]
[1725512542818,3.749,133.38,133.34,7.4481654]
[1725512543016,3.749,133.38,133.34,3.7499]
[1725512543608,3.749,133.38,133.34,7.57284112]
[1725512543822,23.03,133.41,133.35,0.05272413]
[1725512543823,3.79969303,133.37,133.35,0.05272413]
[1725512544115,23.08049303,133.37,133.27,1.362]
[1725512544319,23.03,133.35,133.27,5.13693872]
[1725512544617,23.03,133.34,133.27,1.362]
[1725512544820,3.73818689,133.34,133.27,1.362]
[1725512545022,23.03,133.35,133.27,24.392]
[1725512545313,0.04821317,133.32,133.3,0.04764342]
[1725512545820,0.04821317,133.32,133.3,3.79874342]
[1725512546720,0.04821317,133.32,133.31,3.7508]
[1725512547517,0.04821317,133.32,133.3,3.79864342]
[1725512548420,0.04821317,133.32,133.31,3.7508]
[1725512549816,0.04821317,133.32,133.3,0.04764342]
[1725512550618,0.04821317,133.32,133.3,23.07764342]
[1725512550818,3.74821783,133.38,133.3,23.03]
[1725512551019,23.03,133.37,133.28,23.03]
[1725512551723,0.04732367,133.34,133.31,0.0566978]
[1725512552927,3.79752367,133.34,133.31,0.0566978]
[1725512554319,0.04732367,133.34,133.31,0.0566978]
[1725512554723,0.04732367,133.34,133.32,3.7503]
[1725512555119,0.04732367,133.34,133.31,0.0566978]
[1725512555320,0.04732367,133.34,133.32,3.7503]
[1725512555522,0.04732367,133.34,133.31,0.0566978]
[1725512558633,0.04732367,133.34,133.31,3.8074978]
[1725512559434,3.79732367,133.34,133.31,0.0566978]
[1725512560736,0.04732367,133.34,133.31,0.0566978]
[1725512560937,23.07732367,133.34,133.31,0.0566978]
[1725512561133,3.7505,133.32,133.31,0.0566978]
[1725512562232,3.7516,133.29,133.25,1.3948]
[1725512562434,3.7516,133.29,133.25,3.7524]
[1725512562637,23.03,133.3,133.25,3.7524]
[1725512562831,3.751,133.31,133.27,3.7519]
[1725512563034,23.03,133.32,133.27,3.7519]
[1725512563234,0.05495363,133.31,133.28,0.05292702]
[1725512563430,3.7511,133.3,133.28,0.05292702]
[1725512563632,0.05495363,133.31,133.28,0.05292702]
[1725512564030,3.80575363,133.31,133.28,0.05292702]
[1725512564946,3.7511,133.3,133.28,0.05292702]
[1725512565138,0.05495363,133.31,133.28,0.05292702]
[1725512565846,3.7513,133.3,133.28,0.05292702]
[1725512567544,0.05495363,133.31,133.28,3.80452702]
[1725512569436,3.80575363,133.31,133.28,3.80452702]
[1725512569649,3.80575363,133.31,133.28,0.05292702]
[1725512571344,3.80575363,133.31,133.28,3.80452702]
[1725512572646,3.7511,133.3,133.28,0.05292702]
[1725512574241,3.80575363,133.31,133.28,3.80452702]
[1725512574946,0.05495363,133.31,133.28,0.05292702]
[1725512576253,3.7511,133.3,133.28,0.05292702]
[1725512576445,0.05495363,133.31,133.28,0.05292702]
[1725512578447,3.7514,133.29,133.28,0.05292702]
[1725512583455,12.9712,133.3,133.28,0.05292702]
[1725512584153,0.05495363,133.31,133.28,9.27292702]
[1725512585053,0.05495363,133.31,133.29,3.7511]
[1725512586455,0.05495363,133.31,133.28,3.80442702]
[1725512586959,0.05495363,133.31,133.28,0.05292702]
[1725512588359,0.05495363,133.31,133.29,3.7514]
[1725512589757,9.27495363,133.31,133.28,0.05292702]
[1725512590356,3.7512,133.3,133.28,0.05292702]
[1725512592262,3.7514,133.29,133.28,0.05292702]
[1725512593465,3.7522,133.26,133.08,568.38611495]
[1725512593659,12.9722,133.26,133.2,9.22]
[1725512593862,12.9722,133.26,133.2,12.98388471]
[1725512594561,0.04797353,133.24,133.22,0.04882412]
[1725512596063,3.80077353,133.24,133.22,0.04882412]
[1725512597266,3.753,133.23,133.22,0.04882412]
[1725512597566,0.04797353,133.24,133.22,0.04882412]
[1725512598965,3.80097353,133.24,133.22,0.04882412]
[1725512599169,0.04797353,133.24,133.22,0.04882412]
[1725512600259,3.753,133.23,133.22,0.04882412]
[1725512601970,3.753,133.23,133.01,11.55137274]
[1725512601971,9.26797353,133.24,133.13,3.7685634]
[1725512602171,1.3231,133.25,133.15,9.22]
[1725512602473,12.9738,133.21,133.17,3.7545]
[1725512602867,0.05604957,133.2,133.18,0.05113837]
[1725512604672,0.05604957,133.2,133.18,3.80553837]
[1725512604869,0.05604957,133.2,133.18,0.05113837]
[1725512605268,3.81024957,133.2,133.18,0.05113837]
[1725512605872,0.05604957,133.2,133.18,0.05113837]
[1725512606976,0.05604957,133.2,133.18,3.80553837]
[1725512610368,0.05604957,133.2,133.19,3.7542]
[1725512614376,0.05604957,133.2,133.18,3.80543837]
[1725512615283,0.05604957,133.2,133.18,0.05113837]
[1725512615681,3.80994957,133.2,133.18,0.05113837]
[1725512617576,13.02994957,133.2,133.18,0.05113837]
[1725512617978,3.7542,133.19,133.18,0.05113837]
[1725512619779,9.27604957,133.2,133.18,0.05113837]
[1725512619975,0.05604957,133.2,133.18,0.05113837]
[1725512620874,3.80994957,133.2,133.18,0.05113837]
[1725512621683,0.05604957,133.2,133.18,3.80543837]
[1725512622086,0.05604957,133.2,133.18,0.05113837]
[1725512622281,3.81014957,133.2,133.18,0.05113837]
[1725512622486,0.05604957,133.2,133.18,0.05113837]
[1725512623884,3.81014957,133.2,133.18,0.05113837]
[1725512626389,3.7542,133.19,133.18,0.05113837]
[1725512626585,0.05604957,133.2,133.18,0.05113837]
[1725512626888,3.81004957,133.2,133.18,0.05113837]
[1725512627582,0.05604957,133.2,133.18,0.05113837]
[1725512628293,0.05604957,133.2,133.18,3.80553837]
[1725512629985,0.05604957,133.2,133.19,3.7542]
[1725512630192,0.05604957,133.2,133.18,0.05113837]
[1725512630693,0.05604957,133.2,133.18,3.80543837]
[1725512633090,3.81004957,133.2,133.18,0.05113837]
[1725512635494,3.7542,133.19,133.18,0.05113837]
[1725512648003,9.27604957,133.2,133.18,0.05113837]
[1725512648803,0.05604957,133.2,133.18,0.05113837]
[1725512649804,3.80994957,133.2,133.18,0.05113837]
[1725512650412,0.05604957,133.2,133.18,0.05113837]
[1725512651517,0.05604957,133.2,133.18,3.80543837]
[1725512651917,13.03014957,133.2,133.18,0.05113837]
[1725512654514,9.27604957,133.2,133.18,3.80553837]
[1725512656114,0.05604957,133.2,133.18,3.80553837]
[1725512658719,0.05604957,133.2,133.19,3.7542]
[1725512660022,12.92362024,133.24,133.19,5.1389]
[1725512660223,9.22,133.24,133.19,5.1389]
[1725512660418,12.07258458,133.29,133.2,9.22]
[1725512660613,0.27599379,133.28,133.22,9.22]
[1725512660818,9.22,133.27,133.22,9.22]
[1725512661019,0.04998351,133.26,133.23,0.05245664]
[1725512661322,0.04998351,133.26,133.23,0.05327256]
[1725512661925,0.04998351,133.26,133.24,3.7526]
[1725512662124,0.04998351,133.26,133.23,0.05327256]
[1725512663425,0.04998351,133.26,133.23,3.80617256]
[1725512663426,3.80238351,133.26,133.23,3.80617256]
[1725512667619,0.04998351,133.26,133.23,3.80617256]
[1725512668625,3.80228351,133.26,133.23,3.80617256]
[1725512670123,9.26998351,133.26,133.23,0.05327256]
[1725512670323,0.04998351,133.26,133.23,0.05327256]
[1725512670525,9.22,133.25,133.23,0.05327256]
[1725512671123,12.9726,133.25,133.23,0.05327256]
[1725512671327,3.7526,133.25,133.23,0.05327256]
[1725512671827,0.04998351,133.26,133.23,3.80607256]
[1725512672629,3.80218351,133.26,133.23,3.80607256]
[1725512673130,0.04998351,133.26,133.24,3.7527]
[1725512673934,0.04998351,133.26,133.24,5.0742]
[1725512677734,0.04998351,133.26,133.25,3.7525]
[1725512677936,9.22,133.3,133.25,3.7525]
[1725512678342,9.22,133.3,133.24,10.5415]
[1725512679042,0.05717964,133.28,133.26,3.80907143]
[1725512679838,0.05717964,133.28,133.27,3.7519]
[1725512680037,228.0,133.39,133.27,9.22]
[1725512680038,13.08419849,133.38,133.27,9.22]
[1725512680340,9.22,133.34,133.27,9.22]
[1725512680541,12.88499024,133.34,133.27,9.22]
[1725512680842,3.7507,133.32,133.29,3.7512]
[1725512681031,9.26943424,133.32,133.29,0.04797053]
[1725512681441,3.751,133.31,133.29,0.04797053]
[1725512683537,0.04943424,133.32,133.29,0.04797053]
[1725512683741,0.04943424,133.32,133.3,9.22]
[1725512684040,0.04943424,133.32,133.31,9.22]
[1725512684449,0.04943424,133.32,133.29,0.04797053]
[1725512684742,12.9711,133.3,133.29,0.04797053]
[1725512686840,9.22,133.3,133.14,1.3303]
[1725512687043,9.22,133.25,133.19,9.22]
[1725512687240,9.22,133.25,133.2,1.4149]
[1725512687435,3.7525,133.25,133.2,6.5703]
[1725512687642,3.7525,133.25,133.2,7.9065]
[1725512687839,0.05039511,133.24,133.21,0.05460727]
[1725512688743,3.80319511,133.24,133.21,0.05460727]
[1725512689339,9.22,133.22,133.21,0.05460727]
[1725512690449,12.9733,133.22,133.21,0.05460727]
[1725512691346,9.22,133.22,133.15,4.029]
[1725512691548,9.22,133.2,133.15,4.029]
[1725512692551,3.80780972,133.19,133.16,0.05445924]
[1725512693147,3.7545,133.18,133.16,0.05445924]
[1725512693451,9.22,133.18,133.16,0.05445924]
[1725512693649,0.05360972,133.19,133.16,0.05445924]
[1725512693650,9.22,133.17,133.16,0.05445924]
[1725512693849,12.9747,133.17,133.16,0.05445924]
[1725512694050,3.7547,133.17,133.16,0.05445924]
[1725512695752,12.9747,133.17,133.16,0.05445924]
[1725512697356,3.7554,133.15,133.09,3.9894]
[1725512697649,3.7554,133.15,133.1,9.22]
[1725512698247,0.05555375,133.14,133.11,0.05311563]
[1725512698451,0.05555375,133.14,133.11,3.80951563]
[1725512699252,3.81115375,133.14,133.11,0.05311563]
[1725512700452,3.7559,133.13,133.11,0.05311563]
[1725512701648,3.7561,133.12,133.11,0.05311563]
[1725512703359,7.42081295,133.12,133.11,0.05311563]
[1725512704258,3.7561,133.12,133.11,0.05311563]
[1725512704452,7.43939328,133.12,133.11,0.05311563]
[1725512704853,3.7559,133.13,133.11,0.05311563]
[1725512705257,3.73515477,133.12,133.11,0.05311563]
[1725512705451,3.7561,133.12,133.11,0.05311563]
[1725512706870,3.7559,133.13,133.11,0.05311563]
[1725512707071,0.05555375,133.14,133.11,0.05311563]
[1725512707375,9.27555375,133.14,133.11,0.05311563]
[1725512707871,3.7561,133.13,133.11,0.05311563]
[1725512708673,0.05555375,133.14,133.11,0.05311563]
[1725512709078,0.05555375,133.14,133.11,3.80941563]
[1725512709269,0.05555375,133.14,133.12,9.22]
[1725512709568,0.05555375,133.14,133.13,3.7559]
[1725512710369,0.05555375,133.14,133.12,1.3928]
[1725512710578,0.05555375,133.14,133.11,0.05311563]
[1725512711473,0.05555375,133.14,133.11,3.80941563]
[1725512711876,0.05555375,133.14,133.11,0.05311563]
[1725512712071,0.05555375,133.14,133.12,9.22]
[1725512712595,69.39742622,133.23,133.12,9.22]
[1725512712596,69.39742622,133.23,133.13,9.22]
[1725512712874,9.22,133.24,133.17,9.22]
[1725512713068,12.9728,133.24,133.2,3.7537]
[1725512713472,9.22,133.24,133.2,3.7537]
[1725512713778,0.05098156,133.23,133.21,0.05721378]
[1725512714271,0.05098156,133.23,133.21,3.81081378]
[1725512714777,0.05098156,133.23,133.21,0.05721378]
[1725512715176,0.05098156,133.23,133.22,3.7533]
[1725512715973,0.05098156,133.23,133.21,3.81081378]
[1725512717874,0.05098156,133.23,133.21,0.05721378]
[1725512719184,3.7533,133.22,133.21,0.05721378]
[1725512719675,1.2884,133.3,133.21,0.05721378]
[1725512719875,0.2759564,133.29,133.21,23.06]
[1725512720282,23.06,133.28,133.21,3.7534]
[1725512720580,23.06,133.26,133.17,23.06]
[1725512720881,3.80092785,133.23,133.2,0.05463109]
[1725512721272,3.7533,133.22,133.2,0.05463109]
[1725512721473,0.04772785,133.23,133.2,0.05463109]
[1725512721975,3.80092785,133.23,133.2,0.05463109]
[1725512722169,0.04772785,133.23,133.2,0.05463109]
[1725512722574,26.86739739,133.23,133.2,0.05463109]
[1725512722775,23.06,133.21,133.2,0.05463109]
[1725512723379,26.8136,133.21,133.2,0.05463109]
[1725512723979,23.06,133.21,133.14,5.173]
[1725512724179,5.17062944,133.23,133.1,2.7747]
[1725512724180,23.06,133.19,133.1,2.7747]
[1725512724976,0.05092926,133.16,133.13,3.81284548]
[1725512726081,3.80602926,133.16,133.13,0.05724548]
[1725512726387,0.05092926,133.16,133.13,0.05724548]
[1725512727084,3.74062952,133.16,133.13,0.05724548]
[1725512728089,3.80322944,133.23,133.13,3.84575351]
[1725512728288,3.80322944,133.23,133.14,23.06]
[1725512728690,23.06,133.22,133.13,26.72377731]
[1725512728892,23.06,133.22,133.13,23.06]
[1725512729188,0.04820597,133.19,133.16,0.05176492]
[1725512729791,3.80250597,133.19,133.16,0.05176492]
[1725512730993,3.7545,133.18,133.16,0.05176492]
[1725512731586,0.04820597,133.19,133.16,3.80676492]
[1725512731987,0.04820597,133.19,133.17,3.7547]
[1725512732589,0.04820597,133.19,133.16,3.80666492]
[1725512733192,0.04820597,133.19,133.18,3.7545]
[1725512733396,0.04820597,133.19,133.16,0.05176492]
[1725512733589,0.04820597,133.19,133.18,3.7545]
[1725512738198,0.04820597,133.19,133.17,3.7546]
[1725512740998,24.4364,133.27,133.17,3.7546]
[1725512740999,30.0005,133.34,133.17,23.06]
[1725512741201,23.33599622,133.29,133.19,23.06]
[1725512741406,23.06,133.29,133.19,3.7314081]
[1725512741598,3.7521,133.27,133.2,23.06]
[1725512741799,7.54923497,133.27,133.2,23.06]
[1725512742099,0.05761515,133.25,133.22,0.05492859]
[1725512742904,0.05761515,133.25,133.23,3.7529]
[1725512743199,0.05761515,133.25,133.22,0.05492859]
[1725512745404,0.05761515,133.25,133.23,3.753]
[1725512746404,3.81021515,133.25,133.22,3.80812859]
[1725512747105,0.05761515,133.25,133.23,3.753]
[1725512747696,0.05761515,133.25,133.22,23.11492859]
[1725512748405,0.05761515,133.25,133.23,3.7528]
[1725512750006,0.05761515,133.25,133.22,26.86812859]
[1725512750711,3.81011515,133.25,133.22,26.86812859]
[1725512751404,3.7528,133.24,133.22,0.05492859]
[1725512751998,0.05761515,133.25,133.22,0.05492859]
[1725512753202,3.753,133.23,133.22,0.05492859]
[1725512753410,23.06,133.23,133.14,1.2951]
[1725512754002,23.06,133.23,133.16,3.755]
[1725512754003,3.7541,133.2,133.16,3.755]
[1725512754208,23.06,133.23,133.14,1.2951]
[1725512754410,0.05672903,133.2,133.17,0.05147928]
[1725512754711,3.72526401,133.2,133.17,0.05147928]
[1725512754918,0.05672903,133.2,133.17,0.05147928]
[1725512755113,3.7545,133.18,133.17,0.05147928]
[1725512756010,0.05672903,133.2,133.17,0.05147928]
[1725512757017,3.81082903,133.2,133.17,0.05147928]
[1725512758209,3.7542,133.19,133.17,0.05147928]
[1725512759819,3.7545,133.18,133.17,0.05147928]
[1725512769323,3.756,133.13,133.1,3.7566]
[1725512769622,3.756,133.13,133.09,23.06]
[1725512769827,3.7562,133.12,133.09,26.8168]
[1725512770427,3.80671873,133.12,133.09,26.8732187]
[1725512770621,3.7565,133.11,133.09,0.0564187]
[1725512770826,0.05051873,133.12,133.09,0.0564187]
[1725512771226,3.7567,133.1,133.09,0.0564187]
[1725512772426,0.05051873,133.12,133.09,0.0564187]
[1725512772631,3.7566,133.11,133.09,0.0564187]
[1725512773322,3.7567,133.1,133.09,0.0564187]
[1725512773727,0.05051873,133.12,133.09,0.0564187]
[1725512774737,0.05051873,133.12,133.1,23.06]
[1725512775531,0.05051873,133.12,133.09,0.0564187]
[1725512776136,0.05051873,133.12,133.1,3.7565]
[1725512777637,0.05051873,133.12,133.09,0.0564187]
[1725512778039,0.05051873,133.12,133.09,3.8132187]
[1725512780239,3.80671873,133.12,133.09,0.0564187]
[1725512781341,3.7567,133.1,133.09,0.0564187]
[1725512781541,7.50782714,133.1,133.09,0.0564187]
[1725512783036,26.81112714,133.1,132.89,233.5253]
[1725512783242,23.06,133.07,132.97,23.06]
[1725512783542,23.06,133.07,132.97,26.85959422]
[1725512783743,3.7588,133.03,132.99,3.7598]
[1725512783944,0.04968621,133.02,133.0,0.0567122]
[1725512784342,0.04968621,133.02,133.01,3.7593]
[1725512784536,23.06,133.08,133.01,23.06]
[1725512784840,23.06,133.1,133.01,23.06]
[1725512785147,23.06,133.1,133.03,3.7586]
[1725512785644,0.05503053,133.08,133.05,0.04846672]
[1725512786441,3.7578,133.07,133.05,0.04846672]
[1725512787042,3.7576,133.07,133.05,0.04846672]
[1725512787243,0.05503053,133.08,133.05,0.04846672]
[1725512787550,0.05503053,133.08,133.05,3.80636672]
[1725512788648,0.05503053,133.08,133.06,3.7578]
[1725512789542,0.05503053,133.08,133.05,0.04846672]
[1725512789947,3.7578,133.06,133.05,0.04846672]
[1725512790144,0.05503053,133.08,133.05,0.04846672]
[1725512791047,3.7578,133.07,133.05,0.04846672]
[1725512791848,3.81243053,133.08,133.05,0.04846672]
[1725512792247,0.05503053,133.08,133.05,0.04846672]
[1725512793248,3.7577,133.07,133.05,0.04846672]
[1725512795547,0.05503053,133.08,133.05,0.04846672]
[1725512796149,0.05503053,133.08,133.06,26.8177]
[1725512796350,0.05503053,133.08,133.05,0.04846672]
[1725512796648,0.05503053,133.08,133.05,3.80646672]
[1725512797343,0.05503053,133.08,133.05,0.04846672]
[1725512798151,3.7578,133.06,133.05,0.04846672]
[1725512802753,0.05503053,133.08,133.05,0.04846672]
[1725512803054,0.05503053,133.08,133.05,3.80656672]
[1725512803353,3.81253053,133.08,133.05,0.04846672]
[1725512804453,3.81253053,133.08,133.05,3.80656672]
[1725512805656,0.05503053,133.08,133.05,0.04846672]
[1725512805852,22.5,133.19,133.05,23.10846672]
[1725512805853,23.06,133.15,133.05,23.10846672]
[1725512806053,23.06,133.15,133.05,23.06]
[1725512806253,23.06,133.15,133.07,3.7574]
[1725512806456,23.06,133.13,133.04,1.3637]
[1725512806651,3.757,133.09,133.04,5.122]
[1725512806951,0.04997111,133.08,133.05,0.04889108]
[1725512807857,3.7577,133.07,133.05,0.04889108]
[1725512809158,0.04997111,133.08,133.05,0.04889108]
[1725512810354,3.7578,133.06,133.05,0.04889108]
[1725512816765,0.04997111,133.08,133.05,0.04889108]
[1725512818152,0.04997111,133.08,133.05,3.80689108]
[1725512819367,0.04997111,133.08,133.05,0.04889108]
[1725512819556,0.04997111,133.08,133.05,1.38069108]
[1725512819757,0.04997111,133.08,133.06,3.7576]
[1725512821757,0.04997111,133.08,133.07,3.7576]
[1725512822763,0.04997111,133.08,133.06,3.7578]
[1725512822959,0.04997111,133.08,133.05,2.68499108]
[1725512823164,0.04997111,133.08,133.05,0.04889108]
[1725512823668,3.7576,133.07,133.05,0.04889108]
[1725512824262,3.80737111,133.08,133.05,0.04889108]
[1725512824868,0.04997111,133.08,133.05,0.04889108]
[1725512825065,28.91997111,133.08,133.05,0.04889108]
[1725512825265,3.7578,133.06,133.05,0.04889108]
[1725512825463,0.04997111,133.08,133.05,0.04889108]
[1725512826664,0.04997111,133.08,133.05,3.80679108]
[1725512828372,0.04997111,133.08,133.05,0.04889108]
[1725512828575,0.04997111,133.08,133.05,1.46589108]
[1725512828977,0.04997111,133.08,133.06,3.7578]
[1725512829162,0.04997111,133.08,133.05,0.04889108]
[1725512830275,3.7577,133.07,133.05,0.04889108]
[1725512830975,0.04997111,133.08,133.05,0.04889108]
[1725512830976,3.7578,133.06,133.05,0.04889108]
[1725512831979,26.8578,133.06,133.05,0.04889108]
[1725512840177,23.1,133.06,132.98,5.0811]
[1725512840377,23.1,133.04,132.98,5.0811]
[1725512840785,3.7591,133.02,132.98,5.0811]
[1725512841083,0.05250827,133.01,132.99,0.04870119]
[1725512842784,3.81180827,133.01,132.99,0.04870119]
[1725512844786,3.7595,133.0,132.99,0.04870119]
[1725512846987,3.81180827,133.01,132.99,0.04870119]
[1725512847786,0.05250827,133.01,132.99,0.04870119]
[1725512848484,0.05250827,133.01,132.99,3.80840119]
[1725512849484,0.05250827,133.01,133.0,3.7595]
[1725512850686,0.05250827,133.01,132.99,3.80840119]
[1725512853389,0.05250827,133.01,132.99,0.04870119]
[1725512854498,3.81180827,133.01,132.99,0.04870119]
[1725512855499,0.05250827,133.01,132.99,0.04870119]
[1725512855887,9.30250827,133.01,132.99,0.04870119]
[1725512857496,13.06180827,133.01,132.99,0.04870119]
[1725512859302,9.30250827,133.01,132.99,0.04870119]
[1725512859599,3.7595,133.0,132.99,0.04870119]
[1725512859802,13.0095,133.0,132.99,0.04870119]
[1725512866202,13.0095,133.0,132.92,10.6107]
[1725512866203,3.7605,132.97,132.92,1.3607]
[1725512866408,9.25,132.96,132.92,1.3607]
[1725512866904,12.95908974,132.96,132.92,1.3607]
[1725512867101,12.96021827,132.97,132.92,1.3607]
[1725512867307,0.04777962,132.95,132.93,9.30699455]
[1725512867507,0.0531482,132.95,132.93,9.30380109]
[1725512867707,13.0097,133.0,132.96,3.7605]
[1725512868503,9.25,133.0,132.97,3.7603]
[1725512868702,9.30529701,133.0,132.97,3.81127318]
[1725512868901,0.05529701,133.0,132.97,0.05097318]
[1725512869101,9.25,132.99,132.97,3.81117318]
[1725512870199,9.25,132.99,132.97,0.05097318]
[1725512870704,9.25,132.98,132.97,0.05097318]
[1725512871407,0.05529701,133.0,132.97,0.05097318]
[1725512871706,9.25,132.99,132.97,3.81117318]
[1725512871905,9.25,132.99,132.97,0.05097318]
[1725512873110,9.25,132.98,132.97,0.05097318]
[1725512874311,13.0101,132.98,132.97,0.05097318]
[1725512875305,9.25,132.98,132.97,0.05097318]
[1725512875912,13.0101,132.98,132.97,0.05097318]
[1725512876109,3.68369573,132.97,132.9,9.25]
[1725512876306,9.25,132.96,132.9,10.6278]
[1725512876501,9.25,132.96,132.9,14.32503873]
[1725512876903,9.25,132.96,132.9,10.6278]
[1725512877111,9.25,132.96,132.93,3.7612]
[1725512877112,0.04796248,132.94,132.93,3.7612]
[1725512878510,0.04796248,132.94,132.93,13.0112]
[1725512878711,9.25,133.0,132.96,3.7605]
[1725512879014,9.25,133.0,132.93,12.0214]
[1725512879410,9.25,133.0,132.96,3.7606]
[1725512879605,0.05717245,132.99,132.97,0.05471103]
[1725512879813,9.30717245,132.99,132.97,0.05471103]
[1725512880016,3.7601,132.98,132.97,0.05471103]
[1725512880712,13.0101,132.98,132.97,0.05471103]
[1725512882411,3.7608,132.96,132.92,3.7617]
[1725512882713,9.25,132.95,132.9,2.7606]
[1725512883518,0.05532958,132.94,132.91,0.05724712]
[1725512883814,0.05532958,132.94,132.92,3.7616]
[1725512884018,0.05532958,132.94,132.91,0.05724712]
[1725512884315,0.05532958,132.94,132.93,3.7615]
[1725512890412,13.06662958,132.94,132.91,0.05724712]
[1725512890722,9.30532958,132.94,132.91,0.05724712]
[1725512891022,13.06672958,132.94,132.91,0.05724712]
[1725512891620,9.30532958,132.94,132.91,0.05724712]
[1725512891927,9.25,132.93,132.91,0.05724712]
[1725512892321,13.0115,132.93,132.91,0.05724712]
[1725512893226,13.0118,132.92,132.91,0.05724712]
[1725512893618,9.25,132.92,132.91,0.05724712]
[1725512894918,13.0118,132.92,132.91,0.05724712]
[1725512895124,0.05532958,132.94,132.91,0.05724712]
[1725512895514,0.05532958,132.94,132.92,3.7618]
[1725512895919,0.05532958,132.94,132.91,0.05724712]
[1725512896329,0.05532958,132.94,132.92,3.7616]
[1725512897527,0.05532958,132.94,132.91,3.81924712]
[1725512898820,0.05532958,132.94,132.91,0.05724712]
[1725512899522,0.05532958,132.94,132.91,3.81924712]
[1725512900325,0.05532958,132.94,132.91,0.05724712]
[1725512900824,0.05532958,132.94,132.91,3.81914712]
[1725512903427,3.81652958,132.94,132.91,3.81914712]
[1725512903927,3.7618,132.92,132.91,0.05724712]
[1725512904225,13.0118,132.92,132.91,0.05724712]
[1725512908232,9.25,132.92,132.84,10.5794]
[1725512908429,9.25,132.89,132.84,10.5794]
[1725512908634,3.7629,132.88,132.85,3.7637]
[1725512908925,3.7629,132.88,132.84,1.3294]
[1725512909133,0.05657603,132.87,132.85,0.03264025]
[1725512909335,0.05657603,132.87,132.85,3.79644025]
[1725512909829,0.05657603,132.87,132.86,3.7635]
[1725512910228,0.05657603,132.87,132.85,0.03264025]
[1725512910533,0.05657603,132.87,132.85,3.79624025]
[1725512910732,0.05657603,132.87,132.85,0.03264025]
[1725512911632,3.81977603,132.87,132.85,0.03264025]
[1725512911834,0.05657603,132.87,132.85,0.03264025]
[1725512912439,0.05657603,132.87,132.85,3.79634025]
[1725512913541,0.05657603,132.87,132.85,0.03264025]
[1725512913542,3.81997603,132.87,132.85,0.03264025]
[1725512913935,0.05657603,132.87,132.85,0.03264025]
[1725512914135,0.05657603,132.87,132.85,3.79614025]
[1725512914336,0.05657603,132.87,132.85,0.03264025]
[1725512915335,0.05657603,132.87,132.86,3.7635]
[1725512915736,0.05657603,132.87,132.85,0.03264025]
[1725512916141,0.05657603,132.87,132.85,3.79624025]
[1725512918138,3.81977603,132.87,132.85,0.03264025]
[1725512918343,9.30657603,132.87,132.85,0.03264025]
[1725512919544,3.7635,132.86,132.85,0.03264025]
[1725512919736,9.30657603,132.87,132.85,0.03264025]
[1725512920545,13.06997603,132.87,132.85,0.03264025]
[1725512921549,3.7635,132.86,132.85,0.03264025]
[1725512921944,16.78797289,132.86,132.85,0.03264025]
[1725512926151,9.25,132.86,132.85,0.03264025]
[1725512926356,0.05657603,132.87,132.85,0.03264025]
[1725512928463,0.05657603,132.87,132.85,3.79634025]
[1725512928655,0.05657603,132.87,132.85,0.03264025]
[1725512929160,0.05657603,132.87,132.85,3.79634025]
[1725512929361,0.05657603,132.87,132.85,0.03264025]
[1725512929665,13.06997603,132.87,132.85,0.03264025]
[1725512930764,0.05657603,132.87,132.85,0.03264025]
[1725512930967,0.05657603,132.87,132.85,3.79634025]
[1725512931167,0.05657603,132.87,132.85,0.03264025]
[1725512931461,9.25,132.86,132.85,0.03264025]
[1725512931966,13.07981927,132.86,132.77,9.25]
[1725512932163,9.25,132.83,132.77,9.25]
[1725512932565,9.25,132.83,132.8,3.765]
[1725512933065,9.30073405,132.83,132.8,3.765]
[1725512934062,0.05073405,132.83,132.81,3.7647]
[1725512934267,0.05073405,132.83,132.79,2.7794]
[1725512935066,3.81523405,132.83,132.79,2.7794]
[1725512935267,3.81523405,132.83,132.79,1.4251]
[1725512935463,9.25,132.82,132.79,1.4251]
[1725512935666,9.25,132.82,132.79,5.1904]
[1725512935872,13.0148,132.82,132.79,1.4251]
[1725512936456,13.0148,132.82,132.77,9.25]
[1725512936666,13.0148,132.82,132.78,3.7656]
[1725512936867,13.0156,132.79,132.74,1.3341]
[1725512937167,0.05107632,132.78,132.74,1.3341]